Cogmind - Beta 13 @@@ ROGUE MODE // 2024.05.25 @ 09:05:37 Player: Occam Result: Destroyed self with Grenade Launcher Performance ------------- Evolutions (0) 0 Regions Visited (2) 400 Robots Destroyed (30) 150 Value Destroyed (537) 537 Prototype IDs (0) 0 Alien Tech Used (0) 0 Bonus (0) 0 TOTAL SCORE: 1087 Bonus ------- None Cogmind --------- Core Integrity 0/250 Matter 230/300 Energy 100/100 System Corruption 4% Temperature Cool (0) Movement Core (750) Ox14 Location -10/Mines Parts ------- > --- POWER (1) -------- (None) > --- PROPULSION (2) --- (None) > --- UTILITY (2) ------ High-capacity Storage Unit Structural Scanner > --- WEAPON (2) ------- Grenade Launcher > --- INVENTORY (20) --- Ion Engine Light Treads Compact Wheel Compact Wheel Improved Heat Sink Large Storage Unit Huge Storage Unit Medium Matter Pod (91) Seismic Detector Seismic Detector Hacking Suite Medium Laser Small Laser Small Laser Beam Cannon Beam Cannon Light Assault Rifle Light Assault Rifle Grenade Launcher Peak State ------------ > --- POWER ------------ Ion Engine > --- PROPULSION ------- Light Treads Light Treads > --- UTILITY ---------- High-capacity Storage Unit Structural Scanner > --- WEAPON ----------- Medium Laser Assault Rifle > --- INVENTORY -------- Ion Engine Compact Wheel Compact Wheel Compact Wheel Improved Heat Sink Large Storage Unit Huge Storage Unit Medium Matter Pod Seismic Detector Seismic Detector Small Laser Small Laser Beam Cannon Beam Cannon Light Assault Rifle Light Assault Rifle Grenade Launcher Grenade Launcher [Rating: 9] Favorites ----------- Power Ion Engine Engine Ion Engine Propulsion Light Treads Treads Light Treads Leg Aluminum Leg Wheel Compact Wheel Utility Structural Scanner Device Structural Scanner Storage High-capacity Storage Unit Weapon Medium Laser Energy Gun Medium Laser Ballistic Gun Assault Rifle Launcher Grenade Launcher Build | -11 -10 -10 ------- Run | Yrd Mat Min Slots Evolved . | . . . Power . | . . . Propulsion . | . . . Utility . | . . . Weapon . | . . . Parts Attached 13 | 1 11 1 Power 2 | . 2 . Engine 2 | . 2 . Core . | . . . Reactor . | . . . Propulsion 3 | . 3 . Treads 2 | . 2 . Leg . | . . . Wheel 1 | . 1 . Hover . | . . . Flight . | . . . Utility 4 | 1 3 . Device 2 | 1 1 . Storage 2 | . 2 . Processor . | . . . Hackware . | . . . Protection . | . . . Artifact . | . . . Weapon 4 | . 3 1 Energy Gun 1 | . 1 . Energy Cannon . | . . . Ballistic Gun 2 | . 2 . Ballistic Cannon . | . . . Launcher 1 | . . 1 Special Weapon . | . . . Impact Weapon . | . . . Slashing Weapon . | . . . Piercing Weapon . | . . . Special Melee Weapon . | . . . Unidentified Prototypes . | . . . Parts Lost 6 | . 2 4 Power 2 | . 1 1 Propulsion 2 | . . 2 Utility . | . . . Weapon 2 | . 1 1 Highest Loss Streak 4 | . 1 4 To Critical Strikes . | . . . Average Slot Usage (%) 96 | . 96 85 Engine 11 | . 11 14 Treads 26 | . 26 14 Device 14 | . 14 14 Storage 14 | . 14 14 Energy Gun 13 | . 13 . Ballistic Gun 14 | . 14 14 Naked Turns . | . . . Heaviest Build 50 | 13 50 50 Greatest Support 40 | 20 40 16 Greatest Overweight (x) 3 | . 3 3 Average Overweight (x) . | . . 3 Largest Inventory Capacity 20 | 8 20 20 Average Capacity 15 | 8 16 20 Most Carried 19 | 6 19 19 Average Carried 13 | 5 14 19 Final Capacity 20 | 8 20 20 Final Carried 19 | 5 19 19 Class Distribution -------------------- 100% | Mutant Dominant Class ---------------- Mutant | -10/Materials Mutant | -10/Mines Resources | -11 -10 -10 ----------- Run | Yrd Mat Min Matter Collected 605 | 231 374 . Remotely . | . . . Salvage Created 844 | 87 721 36 Parts 58 | 6 51 1 Haulers Intercepted 2 | . 2 . Recyclers Shooed 1 | . 1 . Parts Field Recycled . | . . . Retrieved Matter . | . . . Parts Self-Destructed . | . . . Prevented . | . . . Kills | -11 -10 -10 ------- Run | Yrd Mat Min Combat Hostiles Destroyed 27 | . 15 12 Guns 15 | . 15 . AOE 12 | . . 12 Classes Destroyed 10 | 2 7 1 Worker 2 | . 2 . Builder 1 | . 1 . Tunneler 1 | 1 . . Hauler 2 | . 2 . Recycler 1 | 1 . . Operator 2 | . 2 . Watcher 3 | . 3 . Swarmer 8 | . 5 3 Grunt 10 | . 10 . Assembled 9 | . . 9 Best Kill Streak 12 | 2 5 12 Combat Bots Only 12 | . 4 12 Max Kills in Single Turn 4 | 1 2 4 Gunslinging 1 | . 1 . Exploded 4 | . . 4 Melee . | . . . Uniques/NPCs Destroyed . | . . . Combat | -11 -10 -10 -------- Run | Yrd Mat Min Hostile Shots Fired 109 | . 72 37 Missed 28 | . 21 7 Damage Taken 1057 | . 581 476 Core 280 | . 144 136 Absorbed by Shields . | . . . Regen/Repaired (Parts) 58 | . 58 . Core Remaining (%) 100 | 100 . . Volleys Fired 94 | 7 81 6 Largest 2 | 2 2 1 Hottest 70 | 70 70 30 Shots Fired 183 | 14 163 6 Gun 177 | 14 163 . Cannon . | . . . Launcher 6 | . . 6 Special . | . . . Kinetic 89 | 7 82 . Thermal 88 | 7 81 . Explosive 6 | . . 6 Electromagnetic . | . . . Robot Hit Streak 13 | 3 13 4 Robot Miss Streak 3 | 2 3 1 Penetration Max . | . . . Secondary Targets 2 | . 2 . Max Gunslinging Chain 1 | . 1 . Shots Hit Robots 123 | 7 112 4 Core Hits 73 | 3 41 29 Critical Kills . | . . . Critical Parts Destroyed 2 | . 2 . Critical Strikes 9 | . 9 . Burn 7 | . 7 . Destroy 2 | . 2 . Melee Attacks . | . . . Impact . | . . . Slashing . | . . . Piercing . | . . . Sneak Attacks . | . . . Combat Hostiles . | . . . Follow-up Attacks . | . . . Damage Inflicted 2317 | 92 1365 860 Guns 1457 | 92 1365 . Cannons . | . . . Explosions 860 | . . 860 Melee . | . . . Ramming . | . . . Kinetic 690 | 55 635 . Thermal 767 | 37 730 . Explosive 860 | . . 860 Electromagnetic . | . . . Impact . | . . . Slashing . | . . . Piercing . | . . . Highest Corruption 4 | . 1 4 Average Corruption 1 | . 1 1 Corruption Purged . | . . . Corruption Blocked . | . . . Effects 8 | . 8 . Message Errors 2 | . 2 . Energy Discharges 1 | . 1 . Data Loss (minor) 2 | . 2 . Data Loss (major) 1 | . 1 . Misfires 1 | . 1 . Alerts 1 | . 1 . Overload Shots . | . . . Overflow Damage 12 | . . 12 Projectiles . | . . . Explosions 12 | . . 12 Melee . | . . . Knockbacks . | . . . Impact . | . . . Kinetic . | . . . Secondary . | . . . Self-Inflicted Damage 107 | . . 107 Shots 4 | . . 4 Rammed . | . . . Targets Rammed . | . . . Kicked . | . . . Crushed . | . . . Highest Temperature 220 | 36 220 10 Average Temperature 46 | 17 50 10 Received Heat Transfer 325 | . 285 40 Siege Activations . | . . . Robots Corrupted . | . . . Combat Hostiles . | . . . Parts Fried . | . . . Impact Corruptions . | . . . Robots Melted . | . . . Combat Hostiles . | . . . Parts Melted 10 | . 10 . Heat Transferred 2775 | 111 2664 . Parts Sabotaged . | . . . Parts Stolen . | . . . Parts Stripped . | . . . Power Chain Reactions . | . . . Alert | -11 -10 -10 ------- Run | Yrd Mat Min Peak Influence 316 | 10 316 54 Initial 6 | . 6 . Average 89 | 5 93 17 Maximum Alert Level 1 | . 1 . Low Security (%) 90 | 100 90 100 Level 1 9 | . 9 . Level 2 . | . . . Level 3 . | . . . Level 4 . | . . . Level 5 . | . . . High Security . | . . . Max Security . | . . . Squads Dispatched 3 | . 3 . Investigation 1 | . 1 . Extermination . | . . . Reinforcement 2 | . 2 . Assault . | . . . Garrison . | . . . Intercept . | . . . Searches Triggered . | . . . Construction Impeded . | . . . Haulers Reinforced . | . . . Active Scanning Responses . | . . . Cargo Convoy Interrupts . | . . . Stealth | -11 -10 -10 --------- Run | Yrd Mat Min Distress Signals 3 | . 3 . Communications Jammed . | . . . Distress Signals . | . . . Times Spotted 49 | . 26 23 Peak Tracking Total 23 | . 5 23 Tactical Retreats 2 | . 2 . Traps | -11 -10 -10 ------- Run | Yrd Mat Min Traps Triggered . | . . . Indirectly . | . . . Trap Hack Attempts . | . . . Triggered . | . . . Disarmed . | . . . Reprogrammed . | . . . Reused . | . . . Traps Extracted . | . . . Installed . | . . . Triggered . | . . . Machines | -11 -10 -10 ---------- Run | Yrd Mat Min Machines Disabled . | . . . Max in Single Turn . | . . . Machines Repaired . | . . . Machines Dismantled . | . . . Machines Sabotaged . | . . . Overloaded Fab Kills . | . . . Hacking | -11 -10 -10 --------- Run | Yrd Mat Min Machines Accessed 8 | . 8 . Terminals 6 | . 6 . Fabricators . | . . . Repair Stations 1 | . 1 . Recycling Units 1 | . 1 . Scanalyzers . | . . . Garrison Access . | . . . Total Hacks 28 | . 28 . Successful 16 | . 16 . Failed 11 | . 11 . Catastrophic 2 | . 2 . Database Lockouts 1 | . 1 . Manual 23 | . 23 . Terminals 24 | . 24 . Fabricators . | . . . Repair Stations 3 | . 3 . Recycling Units 1 | . 1 . Scanalyzers . | . . . Garrison Access . | . . . Terminal Hacks 9 | . 9 . Part Schematic 1 | . 1 . Robot Schematic 1 | . 1 . Robot Analysis 3 | . 3 . Terminal Index 1 | . 1 . Alert Level 1 | . 1 . Locate Traps 2 | . 2 . Fabricator Hacks . | . . . Repair Station Hacks 2 | . 2 . Scan Component 1 | . 1 . Repair 1 | . 1 . Recycling Unit Hacks 1 | . 1 . Report Inventory 1 | . 1 . Scanalyzer . | . . . Garrison Access Hacks . | . . . Unauthorized Hacks 4 | . 4 . Terminals 4 | . 4 . Botnet 2 | . 2 . Disrupt 1 | . 1 . Operators 1 | . 1 . Fabricators . | . . . Repair Stations . | . . . Recycling Units . | . . . Scanalyzers . | . . . Garrison Access . | . . . Data Cores Recovered . | . . . Used . | . . . Hacking Detections 7 | . 7 . Full Trace Events 1 | . 1 . Feedback Events 1 | . 1 . Corruption 1 | . 1 . Feedback Blocked . | . . . Robot Schematics Acquired 1 | . 1 . Robots Built . | . . . Authchips . | . . . Time . | . . . Total Robot Build Rating . | . . . Part Schematics Acquired 1 | . 1 . Parts Built . | . . . Authchips . | . . . Time . | . . . Total Part Build Rating . | . . . Parts Repaired 1 | . 1 . Time 26 | . 26 . Parts Recycled . | . . . Recycled Matter . | . . . Retrieved Matter . | . . . Retrieved Components . | . . . Parts Scanalyzed . | . . . Part Schematics Acquired . | . . . Parts Damaged . | . . . Bothacking | -11 -10 -10 ------------ Run | Yrd Mat Min Used RIF Installer . | . . . Robots Hacked . | . . . Non-combat . | . . . Combat . | . . . Robot Hacks Applied . | . . . Relay Couplers Released . | . . . Fabnet Peak Effective % . | . . . Robots Rewired . | . . . Allies Hacked . | . . . Hacks Repelled . | . . . Allies | -11 -10 -10 -------- Run | Yrd Mat Min Total Allies . | . . . Largest Group . | . . . Highest-Rated Group . | . . . Highest-Rated Ally . | . . . Total Orders . | . . . Ally Attacks . | . . . Total Damage . | . . . Kills . | . . . Allies Corrupted . | . . . Allies Melted . | . . . Intel | -11 -10 -10 ------- Run | Yrd Mat Min Robot Analysis Total 3 | . 3 . Derelict Logs Recovered . | . . . Drone Launches . | . . . Drone Recoveries . | . . . Exploration | -11 -10 -10 ------------- Run | Yrd Mat Min Turns Passed 1967 | 66 1886 15 Spaces Moved 796 | 35 759 2 Core . | . . . Treads 702 | . 702 . Legs 51 | 35 16 . Wheels 43 | . 41 2 Hover . | . . . Flight . | . . . Fastest Speed 120 | 120 120 145 Average Speed 187 | 120 190 145 Slowest Speed 240 | 120 240 145 Overloaded Moves . | . . . Propulsion Burnouts . | . . . Robots Hopped . | . . . Cave-ins Triggered . | . . . Exploration Rate (%) 36 | 3 96 10 Regions Visited 2 Branch Regions 1 Pre-discovered Areas . | . . . Known Exits Taken . | . . . Unknown Exits Taken 2 | 1 1 . Scrap Searched . | . . . Spaces Dug 5 | . . 5 Terrain Destroyed 25 | . . 25 Melee . | . . . Projectile . | . . . AOE 25 | . . 25 Terrain Rammed . | . . . Walls Destroyed . | . . . Machines Disabled . | . . . Actions | -11 -10 -10 --------- Run | Yrd Mat Min Total 1096 | 46 1041 9 Wait 165 | . 165 . Move 794 | 34 758 2 Hop . | . . . Pick Up 19 | 2 17 . Fast Attach 3 | . 3 . Attach 5 | 1 4 . Detach 4 | . 4 . Swap 5 | . 4 1 Drop 7 | 2 5 . Fire 94 | 7 81 6 Melee . | . . . Ram . | . . . Kick . | . . . Crush . | . . . Escape Stasis . | . . . Rewire . | . . . Trap . | . . . Miscellaneous . | . . . Route ------- -11/Scrapyard -10/Materials (discovered 4 exits: [*Mat x3] / [*Min]) -10/Mines History --------- Turn | Location | Event 13 | -11/Scrapyard | Discovered new exit (range 3) 67 | -11/Scrapyard | Entered Materials 313 | -10/Materials | Build established: Mutant 665 | -10/Materials | Discovered new exit (range 16) 810 | -10/Materials | Discovered new exit (range 13) 985 | -10/Materials | Discovered new exit (range 16) 1238 | -10/Materials | Central database locked down 1456 | -10/Materials | Core integrity fell below 50% 1647 | -10/Materials | Discovered new exit (range 11) 1892 | -10/Materials | Repaired Med. Laser 1953 | -10/Materials | Entered Mines 1954 | -10/Mines | Assembled infested the area 1963 | -10/Mines | Core integrity fell below 20% 1966 | -10/Mines | Met 8R-AWN 1968 | -10/Mines | Destroyed self with Grenade Launcher Last Messages --------------- 01966_ as-39783 destroyed. 01966_ HV Slug penetrates Wall. 01966_ Lgt. Treads destroyed. 01966_ System corrupted by crushing effect (+3). 01966_ Knocked back. 8R-AWN: Hm, I'm not getting any readings that show these Assembled are different than what we have already... But you... you look interesting. Maybe they'll want to see you. Come along little bot, it's safer with us than out here, anyway. 01966_ S-10 Pest destroyed. 01966_ Ion Engine destroyed. 01966_ Assault Rifle destroyed. 01967_ The unstable cave ceiling collapses. 01968_ HV Slug penetrates as-70319. 01968_ as-70319 suffers critical hit (Destroy). 01968_ HV Slug penetrates Wall. 01968_ HV Slug penetrates as-70319. 01968_ HV Slug penetrates Wall. 01968_ as-11379 destroyed. 01968_ as-70319 destroyed. Map ----- +----------------------------------------------------+ | ?????????????????????????????????????????? | | ?????????????????????????????????????????? | | ?????????????????????????????????????????? | | ?????????????????????????????????????????? | | ?????????????????????????????????????????? | | ?????????????????????????????????????????? | | ?????????????????????????????????????????? | | ?????????????????????????????????????????? | | ?????????????????????????????????????????? | | ?????????????????????????????????????????? | | ?????????????????????????????????????????? | | ?????????????????????????????????????????? | | ???????## ???????????????????????????????? | | ???????## ???????????????????????????????? | | ??????? ##???????????### ##???????????? | | ???????? ######??????? ## ##???????????? | | ????????? ######?????? ## ##???????????? | | ?????????# ##????? ?????????????? | | ?????????## #??## ##??????????????? | | ???????#### #?### ##??????????????? | | ???????#### ##### ###??????????????? | | ???????## ## ###??????????????? | | ???????###t ## ##??????????????? | | ????????#### %% ##??????????????? | | ??????????## * ###??????????????? | | ?????????#### @ ###???????????????? | | ???######## # a ###????????????????? | | ???### #### aa ####????????????????? | | ???## % a aaaa ####?????????????????? | | ??### % a a ###??????????????????? | | ??## g< #;# ## ##???????????????????? | | ??## ? ### ???????????????? | | ??###?? ### ######???????????????? | | ??###???? ####### #######???????????????? | | ??????????####### ###???????????????????? | | ????????????????? ##????????????????????? | | ????????????????? ##????????????????????? | | ????????????????? ##????????????????????? | | ????????????????? ##????????????????????? | | ????????????????? $##????????????????????? | | ????????????????? ????????????????????? | | ?????????????????? ?????????????????????? | | ?????????????????????????????????????????? | | ?????????????????????????????????????????? | | ?????????????????????????????????????????? | | ?????????????????????????????????????????? | | ?????????????????????????????????????????? | | ?????????????????????????????????????????? | | ?????????????????????????????????????????? | | ?????????????????????????????????????????? | +----------------------------------------------------+ Best States ------------- Heat Dissipation 25 Energy Generation 10 Energy Capacity 250 Matter Stores 300 Matter Capacity 300 Sight Range 16 Terrain Scan Density 10 Evasion (%) 55 Recoil Reduction 2 Item Schematics ----------------- Huge Storage Unit | -10/Materials | Hacked Robot Schematics ------------------ M-13 Machinist | -10/Materials | Hacked Fabricated ------------ Nothing Alien Tech Used ----------------- None Achievements -------------- None Challenges ------------ None Game ------ Seed SiegeImprinterKinecellerator Manual? 0 Play Time 00:13:59 Cumulative 330.0 hours Start 2024.05.24 @ 23:39:23 End 2024.05.25 @ 09:05:37 Sessions 3 Manual Loads 0 Difficulty Rogue Special Mode None Game No. 202 Rogue 58 Adventurer 144 Explorer 0 Win Type - Total 4 Types 2/0/1/1/0/0/0/0/0 Lore% 66 Gallery% 78 Achievement% 64 Wizard Run 0 Options --------- Layout 0 ASCII 0 Keyboard 0 Movement Mouse Keybinds 0 Fullscreen 2 Font 20/SmallcapsGlow Map View 66x50 Zoom Use 0% Tactical HUD 1 Map Filters NONE Filters NONE Steam X RUN: 4255bbc4-708b-435d-99a7-612e8fb1bdd3